bitfinex-derivatives/quotes_SOLF0:USTF0_20250428
["timestamp","ask_amount","ask_price","bid_price","bid_amount"]
[1745849412143,6.7262,148.62,148.55,484.18]
[1745849412336,385.19,148.69,148.55,484.18]
[1745849412642,6.7261,148.63,148.55,484.18]
[1745849413047,6.7261,148.63,148.6,6.727]
[1745849413234,385.19,148.69,148.55,484.18]
[1745849413438,385.19,148.69,148.56,6.0467]
[1745849413942,6.7256,148.64,148.56,6.0467]
[1745849414540,6.7256,148.64,148.61,6.7264]
[1745849414837,365.0,148.69,148.57,13.4568]
[1745849415043,5.9175,148.71,148.56,6.0467]
[1745849415242,3.9047,148.71,148.56,6.0467]
[1745849415445,1.918,148.71,148.57,1.20902964]
[1745849415647,1.918,148.71,148.68,6.7234]
[1745849415945,1.918,148.71,148.59,13.455]
[1745849416843,6.7237,148.68,148.59,13.455]
[1745849417048,1.918,148.71,148.59,13.455]
[1745849417343,1.918,148.71,148.66,6.7241]
[1745849417537,6.7235,148.68,148.66,6.7241]
[1745849418047,1.918,148.71,148.56,6.0467]
[1745849418240,2.0329,148.7,148.56,6.0467]
[1745849418544,6.7256,148.64,148.56,6.0467]
[1745849419145,6.725,148.65,148.56,6.0467]
[1745849419647,6.7253,148.64,148.62,6.7259]
[1745849419844,6.7253,148.64,148.56,6.0467]
[1745849420547,2.0329,148.7,148.56,6.0467]
[1745849420948,6.7256,148.64,148.61,6.7264]
[1745849421846,2.0329,148.7,148.6,6.7268]
[1745849422152,365.0,148.69,148.56,6.0467]
[1745849422346,6.725,148.65,148.56,6.0467]
[1745849422649,365.0,148.69,148.56,6.0467]
[1745849422849,6.7255,148.64,148.56,6.0467]
[1745849423152,365.0,148.69,148.56,6.0467]
[1745849423342,365.0,148.69,148.56,4.0308]
[1745849423851,365.0,148.69,148.59,6.7272]
[1745849424151,365.0,148.69,148.56,4.0308]
[1745849424547,20.19,148.68,148.59,6.7272]
[1745849425143,6.726,148.63,148.59,6.7272]
[1745849425450,20.19,148.68,148.55,484.18]
[1745849425752,6.7273,148.6,148.55,484.18]
[1745849425952,4.023,148.62,148.55,484.18]
[1745849426151,10.7494,148.62,148.55,484.18]
[1745849426450,4.023,148.62,148.55,484.18]
[1745849426954,4.023,148.62,148.59,6.7274]
[1745849427156,4.023,148.62,148.55,484.18]
[1745849427453,6.7269,148.61,148.55,484.18]
[1745849427651,4.023,148.62,148.57,6.7282]
[1745849427953,6.7273,148.6,148.57,6.7282]
[1745849428352,4.023,148.62,148.58,6.7279]
[1745849428651,4.023,148.62,148.55,484.18]
[1745849428854,4.023,148.62,148.59,6.7271]
[1745849429253,4.023,148.62,148.55,484.18]
[1745849429457,4.023,148.62,148.6,6.7268]
[1745849430157,4.023,148.62,148.61,6.7266]
[1745849430455,4.023,148.62,148.55,484.18]
[1745849430750,20.19,148.68,148.55,484.18]
[1745849430952,24.2267,148.67,148.55,484.18]
[1745849431353,24.2267,148.67,148.52,4.1288]
[1745849431554,6.7257,148.63,148.52,4.1288]
[1745849432055,24.2267,148.67,148.59,6.7273]
[1745849432658,24.2267,148.67,148.52,4.1288]
[1745849433256,6.726,148.63,148.53,13.4603]
[1745849433455,6.726,148.63,148.54,2.0015]
[1745849433753,6.726,148.63,148.6,6.7267]
[1745849433959,6.726,148.63,148.54,2.0015]
[1745849434559,6.7252,148.65,148.55,13.4587]
[1745849434957,4.0367,148.67,148.62,6.7259]
[1745849435160,6.7253,148.64,148.62,6.7259]
[1745849436756,6.725,148.65,148.62,6.7259]
[1745849437765,6.7254,148.64,148.61,6.7264]
[1745849437959,4.0367,148.67,148.61,6.7264]
[1745849438160,4.0367,148.67,148.55,13.4587]
[1745849438463,6.726,148.63,148.6,6.7268]
[1745849438664,4.0367,148.67,148.55,13.4587]
[1745849438861,4.0367,148.67,148.6,6.7268]
[1745849439165,24.2267,148.67,148.54,2.0015]
[1745849439363,6.7276,148.59,148.55,6.729]
[1745849439564,385.19,148.66,148.51,484.22]
[1745849439764,385.19,148.65,148.51,484.22]
[1745849439968,385.19,148.65,148.55,6.7291]
[1745849439969,6.7279,148.59,148.55,6.7291]
[1745849440372,6.7281,148.58,148.55,6.7291]
[1745849440672,6.7281,148.58,148.54,6.7296]
[1745849440862,6.7281,148.58,148.51,484.22]
[1745849441068,6.7281,148.58,148.55,6.7293]
[1745849441373,6.7277,148.59,148.55,6.7293]
[1745849441671,2.0956,148.64,148.55,6.7293]
[1745849443363,6.7279,148.59,148.55,6.7293]
[1745849443567,2.0956,148.64,148.51,484.22]
[1745849443972,6.7278,148.59,148.51,484.22]
[1745849444173,2.0956,148.64,148.51,484.22]
[1745849444672,6.7268,148.61,148.57,6.7281]
[1745849444873,2.0956,148.64,148.57,6.7281]
[1745849445073,6.7268,148.61,148.57,6.7282]
[1745849445576,6.7268,148.61,148.52,6.182]
[1745849445770,6.7268,148.61,148.57,6.728]
[1745849446272,6.7264,148.62,148.52,6.182]
[1745849446474,2.0956,148.64,148.52,6.182]
[1745849446873,2.0956,148.64,148.6,6.7269]
[1745849447068,2.0956,148.64,148.52,19.6428]
[1745849447271,4.0367,148.67,148.53,1.20934086]
[1745849447772,4.0367,148.67,148.54,13.4594]
[1745849448167,6.725,148.65,148.63,6.7257]
[1745849448374,15.5274,148.72,148.52,6.182]
[1745849448565,1.9987,148.71,148.53,1.20923262]
[1745849448769,6.7248,148.65,148.56,13.4578]
[1745849449173,1.9987,148.71,148.56,13.4578]
[1745849449375,1.9987,148.71,148.65,6.7248]
[1745849449875,6.7239,148.67,148.64,6.7252]
[1745849450175,6.7239,148.67,148.59,3.9108]
[1745849450973,6.7239,148.67,148.64,6.7251]
[1745849451177,6.7236,148.68,148.59,3.9108]
[1745849451478,1.9987,148.71,148.64,6.7249]
[1745849451678,6.7242,148.67,148.64,6.7249]
[1745849452484,6.7242,148.67,148.65,6.7247]
[1745849452682,6.7236,148.68,148.59,3.9108]
[1745849452984,1.9987,148.71,148.66,6.7241]
[1745849453177,6.7233,148.69,148.66,6.7241]
[1745849453381,1.9987,148.71,148.59,3.9108]
[1745849453582,1.9987,148.71,148.64,6.725]
[1745849453777,1.9987,148.71,148.59,3.9108]
[1745849454379,6.7228,148.7,148.59,3.9108]
[1745849454580,2.0674,148.73,148.69,6.7227]
[1745849454880,6.7219,148.72,148.69,6.7227]
[1745849456182,6.7222,148.71,148.69,6.7227]
[1745849456376,2.0674,148.73,148.69,6.7227]
[1745849456680,6.7219,148.72,148.69,6.7227]
[1745849456881,2.0674,148.73,148.69,6.7227]
[1745849457078,2.0674,148.73,148.68,6.7232]
[1745849457278,6.7222,148.71,148.68,6.7232]
[1745849457473,2.0674,148.73,148.61,484.2]
[1745849457782,6.7221,148.72,148.61,484.2]
[1745849457979,2.0674,148.73,148.61,484.2]
[1745849458378,6.7219,148.72,148.61,484.2]
[1745849458576,6.7219,148.72,148.69,6.7229]
[1745849458777,2.0674,148.73,148.69,6.7229]
[1745849458981,6.7222,148.71,148.61,484.2]
[1745849459181,6.7222,148.71,148.68,6.7232]
[1745849459782,6.7226,148.7,148.68,6.7232]
[1745849460483,2.0674,148.73,148.68,6.7232]
[1745849460678,2.0674,148.73,148.61,484.2]
[1745849460880,6.7235,148.68,148.61,484.2]
[1745849461182,4.1164,148.72,148.66,6.7241]
[1745849461384,6.7234,148.69,148.66,6.7241]
[1745849461684,4.1164,148.72,148.65,6.7246]
[1745849461983,6.7237,148.68,148.65,6.7246]
[1745849462179,4.1164,148.72,148.64,6.725]
[1745849462380,4.1164,148.72,148.61,484.2]
[1745849462581,6.7228,148.7,148.61,484.2]
[1745849462878,4.1164,148.72,148.61,484.2]
[1745849463080,6.723,148.69,148.61,484.2]
[1745849463281,6.723,148.69,148.66,6.7241]
[1745849463683,6.723,148.69,148.67,6.7239]
[1745849463884,6.723,148.69,148.61,484.2]
[1745849464186,6.7235,148.68,148.65,6.7245]
[1745849464680,6.724,148.67,148.61,484.2]
[1745849464984,4.1164,148.72,148.61,484.2]
[1745849465285,6.7232,148.69,148.65,6.7245]
[1745849465488,4.1164,148.72,148.61,484.2]
[1745849465886,6.723,148.69,148.66,6.724]
[1745849466284,6.723,148.69,148.61,484.2]
[1745849466889,6.7227,148.7,148.61,484.2]
[1745849467090,4.1164,148.72,148.61,484.2]
[1745849467592,6.7233,148.69,148.61,484.2]
[1745849467793,4.1164,148.72,148.61,484.2]
[1745849467992,24.3064,148.72,148.61,484.2]
[1745849468292,6.7254,148.64,148.61,6.7263]
[1745849469092,33.6353,148.7,148.58,1.9822]
[1745849469493,6.7261,148.63,148.58,1.9822]
[1745849469795,33.6353,148.7,148.58,1.9822]
[1745849469993,6.726,148.63,148.58,1.9822]
[1745849470793,6.7263,148.62,148.54,3.9719]
[1745849470994,20.19,148.68,148.54,3.9719]
[1745849471294,6.7267,148.61,148.58,6.7279]
[1745849471692,2.0322,148.67,148.54,3.9719]
[1745849471894,3.9239,148.66,148.54,3.9719]
[1745849472297,6.7254,148.64,148.54,3.9719]
[1745849473092,3.9239,148.66,148.54,3.9719]
[1745849473998,3.9239,148.66,148.6,6.727]
[1745849475300,6.7255,148.64,148.6,6.727]
[1745849476002,6.7258,148.63,148.6,6.727]
[1745849476402,3.9239,148.66,148.61,6.7265]
[1745849476604,6.7254,148.64,148.54,3.9719]
[1745849476899,3.9239,148.66,148.59,6.7272]
[1745849477104,3.9239,148.66,148.54,3.9719]
[1745849477604,6.727,148.61,148.54,3.9719]
[1745849477807,24.1139,148.66,148.53,486.0639]
[1745849478404,24.1139,148.66,148.56,6.7286]
[1745849479003,6.7277,148.59,148.56,6.7286]
[1745849479209,24.1139,148.66,148.53,484.04]
[1745849479399,20.19,148.64,148.53,484.04]
[1745849479605,6.7287,148.57,148.53,484.04]
[1745849479898,6.7287,148.57,148.53,490.7699]
[1745849480102,6.7287,148.57,148.53,484.04]
[1745849480307,6.7287,148.57,148.53,490.77]
[1745849480903,6.7282,148.58,148.53,484.04]
[1745849481207,20.19,148.64,148.53,484.04]
[1745849482000,6.7273,148.6,148.56,6.7285]
[1745849482200,6.7273,148.6,148.53,484.04]
[1745849482399,365.0,148.65,148.53,484.04]
[1745849482609,6.7268,148.61,148.53,484.04]
[1745849483207,6.7271,148.6,148.53,484.04]
[1745849483607,365.0,148.65,148.53,484.04]
[1745849483902,365.0,148.65,148.56,6.7285]
[1745849484310,365.0,148.65,148.53,484.04]
[1745849484607,6.7268,148.61,148.58,6.728]
[1745849485009,6.7273,148.6,148.57,6.7283]
[1745849485209,365.0,148.65,148.53,484.04]
[1745849485708,6.7263,148.62,148.59,6.7273]
[1745849485903,365.0,148.65,148.54,4.0854]
[1745849486209,6.7286,148.57,148.54,6.7296]
[1745849486509,385.19,148.65,148.55,6.7293]
[1745849486805,385.19,148.65,148.53,484.04]
[1745849487210,6.7281,148.58,148.55,6.7291]
[1745849487411,385.19,148.65,148.53,484.04]
[1745849487809,385.19,148.65,148.54,6.7295]
[1745849488011,385.19,148.65,148.53,484.04]
[1745849488310,6.7287,148.57,148.53,484.04]
[1745849488713,385.19,148.65,148.53,484.04]
[1745849489008,6.7283,148.58,148.53,484.04]
[1745849490010,6.7283,148.58,148.54,6.7296]
[1745849490210,6.7283,148.58,148.53,484.04]
[1745849490406,365.0,148.64,148.53,484.04]
[1745849490809,365.0,148.64,148.55,6.729]
[1745849491213,365.0,148.64,148.54,6.7295]
[1745849491408,365.0,148.64,148.53,484.04]
[1745849491705,6.7282,148.58,148.53,484.04]
[1745849492011,365.0,148.64,148.53,484.04]
[1745849492410,6.7283,148.58,148.53,484.04]
[1745849493312,6.7283,148.58,148.55,6.7291]
[1745849493614,6.7277,148.59,148.48,484.34]
[1745849493812,365.0,148.64,148.55,6.7291]
[1745849494010,365.0,148.64,148.48,484.34]
[1745849494312,6.7277,148.59,148.55,6.729]
[1745849494507,13.4515,148.63,148.48,484.34]
[1745849494713,385.19,148.64,148.48,484.34]
[1745849494911,385.19,148.64,148.45,6.1926]
[1745849495108,33.6425,148.62,148.45,6.1926]
[1745849495408,2.0151,148.61,148.45,6.1926]
[1745849495607,2.0151,148.61,148.5,6.7313]
[1745849495808,3.9966,148.6,148.5,6.7313]
[1745849496213,6.7304,148.53,148.5,6.7313]
[1745849497009,6.73,148.54,148.5,6.7313]
[1745849497211,6.73,148.54,148.51,6.7311]
[1745849497613,6.7296,148.55,148.45,6.1926]
[1745849498011,3.9966,148.6,148.51,6.7309]
[1745849498315,6.7299,148.54,148.51,6.7309]
[1745849498613,3.9966,148.6,148.52,6.7307]
[1745849498912,6.7296,148.55,148.52,6.7307]
[1745849499418,3.9966,148.6,148.53,6.7302]
[1745849499923,3.9966,148.6,148.46,13.4668]
[1745849500119,3.9966,148.6,148.45,6.1926]
[1745849500515,3.9966,148.6,148.55,6.7293]
[1745849500916,6.7283,148.58,148.55,6.7293]
[1745849502722,6.7284,148.57,148.55,6.7293]
[1745849502921,367.0151,148.61,148.45,6.1926]
[1745849503120,2.0151,148.61,148.46,1.209749]
[1745849503320,6.7284,148.57,148.55,6.7291]
[1745849503521,2.0151,148.61,148.49,13.4639]
[1745849504021,6.7288,148.57,148.49,13.4639]
[1745849504621,6.7288,148.57,148.55,6.7293]
[1745849504922,6.7288,148.57,148.49,13.4639]
[1745849505822,6.7288,148.57,148.55,6.7292]
[1745849506024,6.7288,148.57,148.49,13.4639]
[1745849506723,6.7288,148.57,148.54,6.7296]
[1745849506923,6.7289,148.56,148.54,6.7296]
[1745849507124,6.7289,148.56,148.45,19.6599]
[1745849507313,6.7289,148.56,148.46,1.209822]
[1745849507824,6.7289,148.56,148.54,6.7297]
[1745849508222,6.7289,148.56,148.45,19.6599]
[1745849508425,6.7289,148.56,148.53,6.7299]
[1745849508723,2.0151,148.61,148.45,19.6599]
[1745849508922,2.0151,148.61,148.52,6.7304]
[1745849509123,6.7296,148.55,148.52,6.7304]
[1745849509425,2.0151,148.61,148.45,19.6599]
[1745849509627,13.4544,148.6,148.45,19.6599]
[1745849509824,33.6444,148.6,148.45,19.6599]
[1745849510025,6.7302,148.54,148.51,6.7309]
[1745849510221,4.072,148.59,148.45,19.6599]
[1745849510621,6.7306,148.53,148.5,6.7313]
[1745849510826,6.7306,148.53,148.45,19.6599]
[1745849511028,4.072,148.59,148.45,19.6599]
[1745849511729,6.7303,148.53,148.5,6.7313]
[1745849511930,6.7303,148.53,148.45,19.6599]
[1745849512228,4.072,148.59,148.51,6.7309]
[1745849512728,6.73,148.54,148.51,6.7309]
[1745849513630,6.7303,148.53,148.5,6.7314]
[1745849513829,4.072,148.59,148.45,19.6599]
[1745849514328,6.7294,148.55,148.52,6.7305]
[1745849514630,4.072,148.59,148.45,19.6599]
[1745849514929,6.7296,148.55,148.45,19.6599]
[1745849515228,6.7296,148.55,148.52,6.7304]
[1745849516629,6.73,148.54,148.51,6.731]
[1745849516820,4.072,148.59,148.45,19.6599]
[1745849517028,24.262,148.59,148.49,6.7317]
[1745849517226,24.262,148.59,148.45,6.1926]
[1745849517930,6.7306,148.53,148.5,6.7316]
[1745849519430,6.7307,148.52,148.5,6.7316]
[1745849519631,24.262,148.59,148.5,6.7316]
[1745849520033,6.7305,148.53,148.49,6.7317]
[1745849520731,6.7308,148.52,148.49,6.7317]
[1745849521133,6.7304,148.53,148.5,6.7316]
[1745849521334,4.072,148.59,148.45,4.0854]
[1745849521633,6.7282,148.58,148.54,6.7298]
[1745849521826,2.0151,148.61,148.46,1.989]
[1745849522331,6.7282,148.58,148.55,6.7292]
[1745849522531,6.7282,148.58,148.48,13.4648]
[1745849522734,2.0151,148.61,148.48,13.4648]
[1745849522931,2.0151,148.61,148.56,6.7289]
[1745849523435,2.0151,148.61,148.55,6.7291]
[1745849523736,2.0151,148.61,148.48,13.4648]
[1745849523939,6.7287,148.57,148.48,13.4648]
[1745849524239,6.7287,148.57,148.54,6.7295]
[1745849524433,2.0151,148.61,148.48,13.4648]
[1745849524737,2.0151,148.61,148.49,13.4639]
[1745849524937,6.7282,148.58,148.49,13.4639]
[1745849525537,6.7285,148.57,148.54,6.7294]
[1745849525736,2.0151,148.61,148.49,13.4639]
[1745849526138,6.7282,148.58,148.55,6.729]
[1745849526945,6.7282,148.58,148.56,6.7288]
[1745849527144,6.7277,148.59,148.49,13.4639]
[1745849527347,2.0151,148.61,148.49,13.4639]
[1745849527647,2.0151,148.61,148.55,6.7291]
[1745849527838,2.0151,148.61,148.49,13.4639]
[1745849528344,6.7282,148.58,148.49,13.4639]
[1745849528545,6.7282,148.58,148.55,6.7289]
[1745849528839,2.0151,148.61,148.49,13.4639]
[1745849529346,2.1137,148.63,148.5,13.4632]
[1745849529547,6.7272,148.6,148.51,3.8575]
[1745849529746,6.7272,148.6,148.52,1.9323]
[1745849530042,2.0862,148.65,148.52,1.9323]
[1745849530347,6.7266,148.61,148.52,1.9323]
[1745849530540,2.0862,148.65,148.52,1.9323]
[1745849530849,6.7267,148.61,148.52,1.9323]
[1745849531244,2.0862,148.65,148.52,1.9323]
[1745849531451,6.7264,148.62,148.52,1.9323]
[1745849531752,6.7264,148.62,148.59,6.7273]
[1745849531951,366.9153,148.68,148.52,1.9323]
[1745849532153,366.9153,148.68,148.53,13.4604]
[1745849532349,366.9153,148.68,148.61,6.7264]
[1745849533251,6.7255,148.64,148.61,6.7264]
[1745849534253,6.7248,148.66,148.52,1.9323]
[1745849534454,1.9905,148.67,148.53,1.2093442]
[1745849534853,3.9032,148.67,148.52,1.9323]
[1745849535153,6.7269,148.61,148.58,6.7278]
[1745849535352,3.9032,148.67,148.52,1.9323]
[1745849535855,17.3518,148.67,148.52,1.9323]
[1745849536352,6.7283,148.58,148.52,1.9323]
[1745849536557,378.4489,148.66,148.52,1.9323]
[1745849536952,378.4489,148.66,148.56,6.7285]
[1745849537353,6.7275,148.59,148.56,6.7285]
[1745849537655,378.4489,148.66,148.56,6.7285]
[1745849537950,378.4489,148.66,148.55,6.7291]
[1745849538151,378.4489,148.66,148.52,1.9323]
[1745849538556,378.4489,148.66,148.57,6.7281]
[1745849538956,6.7271,148.6,148.57,6.7281]
[1745849539158,378.4489,148.66,148.58,6.7279]
[1745849539458,6.727,148.61,148.58,6.7279]
[1745849539858,378.4489,148.66,148.58,6.7279]
[1745849540050,6.7272,148.6,148.57,6.7282]
[1745849540855,6.7272,148.6,148.58,6.7279]
[1745849541158,6.7268,148.61,148.58,6.7279]
[1745849541952,378.4489,148.66,148.52,1.9323]
[1745849542455,6.7268,148.61,148.58,6.7278]
[1745849542653,378.4489,148.66,148.58,6.7278]
[1745849543152,365.0,148.66,148.52,1.9323]
[1745849543356,3.9032,148.67,148.52,1.9323]
[1745849544348,1.9905,148.67,148.52,1.9323]
[1745849544550,6.7229,148.7,148.59,13.4542]
[1745849544856,6.7229,148.7,148.6,6.0819]
[1745849545256,6.7229,148.7,148.67,6.7237]
[1745849545661,8.7422,148.71,148.6,6.0819]
[1745849545860,8.7422,148.71,148.68,6.7232]
[1745849546159,2.0199,148.71,148.68,6.7232]
[1745849546560,2.0199,148.71,148.6,6.0819]
[1745849547063,6.7228,148.7,148.67,6.7236]
[1745849547464,2.0199,148.71,148.6,6.0819]
[1745849547657,6.7224,148.71,148.6,6.0819]
[1745849548161,6.7224,148.71,148.68,6.7231]
[1745849548364,6.7218,148.72,148.6,6.0819]
[1745849548760,2.1179,148.73,148.69,6.7229]
[1745849549063,2.1179,148.73,148.6,6.0819]
[1745849549562,6.7221,148.71,148.69,6.7229]
[1745849549856,2.1179,148.73,148.6,6.0819]
[1745849550060,6.7219,148.72,148.69,6.7227]
[1745849550263,2.1179,148.73,148.69,6.7227]
[1745849550565,6.7226,148.7,148.68,6.7234]
[1745849550760,2.1179,148.73,148.68,6.7234]
[1745849551062,2.1179,148.73,148.6,6.0819]
[1745849551964,6.7232,148.69,148.66,6.724]
[1745849552563,6.7232,148.69,148.67,6.7238]
[1745849552763,6.7227,148.7,148.67,6.7238]
[1745849552962,2.1179,148.73,148.6,6.0819]
[1745849553364,6.7233,148.69,148.6,6.0819]
[1745849553663,2.1179,148.73,148.6,6.0819]
[1745849553855,2.1179,148.73,148.67,6.7237]
[1745849555165,2.1179,148.73,148.6,6.0819]
[1745849555762,2.1179,148.73,148.61,13.4532]
[1745849556460,6.7221,148.71,148.68,6.7232]
[1745849556868,2.1179,148.73,148.61,13.4532]
[1745849557066,6.7219,148.72,148.69,6.7227]
[1745849558068,8.8393,148.73,148.69,6.7227]
[1745849558371,2.1179,148.73,148.69,6.7227]
[1745849558969,6.7217,148.72,148.69,6.7227]
[1745849559165,2.1179,148.73,148.62,13.4523]
[1745849559367,1.9538,148.76,148.62,13.4523]
[1745849559563,6.721,148.74,148.62,13.4523]
[1745849559764,6.721,148.74,148.71,6.7221]
[1745849560769,6.7213,148.73,148.7,6.7224]
[1745849560965,6.7213,148.73,148.62,13.4523]
[1745849561271,6.722,148.72,148.62,13.4523]
[1745849561765,6.722,148.72,148.69,6.7228]
[1745849562172,6.7222,148.71,148.69,6.7228]
[1745849562769,6.7222,148.71,148.68,6.7232]
[1745849562972,6.7219,148.72,148.62,13.4523]
[1745849563171,3.9626,148.76,148.69,6.7228]
[1745849563573,6.7219,148.72,148.69,6.7228]
[1745849566175,6.7219,148.72,148.7,6.7225]
[1745849566369,3.9626,148.76,148.62,13.4523]
[1745849566773,6.7217,148.72,148.68,6.723]
[1745849567073,6.7217,148.72,148.62,13.4523]
[1745849567262,6.7217,148.72,148.69,6.7227]
[1745849567463,6.7221,148.71,148.69,6.7227]
[1745849567669,3.9626,148.76,148.62,13.4523]
[1745849567970,6.7225,148.71,148.68,6.7234]
[1745849568169,3.9626,148.76,148.62,13.4523]
[1745849568370,3.9626,148.76,148.69,6.7228]
[1745849569173,6.7219,148.72,148.69,6.7228]
[1745849570674,6.7222,148.71,148.68,6.7232]
[1745849570876,6.7222,148.71,148.62,13.4523]
[1745849571375,6.7219,148.72,148.69,6.7229]
[1745849571577,3.9626,148.76,148.62,13.4523]
[1745849571977,6.7217,148.72,148.69,6.723]
[1745849572177,3.9626,148.76,148.62,13.4523]
[1745849572582,6.7223,148.71,148.68,6.7231]
[1745849572783,20.19,148.74,148.59,484.36]
[1745849572973,3.9958,148.7,148.59,484.36]
[1745849573177,2.0702,148.69,148.59,484.36]
[1745849573482,2.0702,148.69,148.55,4.0766]
[1745849573682,6.7266,148.61,148.57,6.7281]
[1745849573882,367.0702,148.69,148.57,6.7281]
[1745849574080,367.0702,148.69,148.55,4.0766]
[1745849574782,6.7247,148.66,148.61,6.7264]
[1745849575181,6.7247,148.66,148.55,4.0766]
[1745849575677,6.7249,148.65,148.55,4.0766]
[1745849575981,6.7249,148.65,148.61,6.7265]
[1745849576182,6.7246,148.66,148.55,4.0766]
[1745849576583,367.0702,148.69,148.55,4.0766]
[1745849576782,6.7252,148.65,148.55,4.0766]
[1745849577276,20.19,148.68,148.51,486.0276]
[1745849577481,2.0771,148.64,148.51,486.0276]
[1745849577685,1.981,148.63,148.51,486.0276]
[1745849577874,6.7264,148.62,148.51,486.0276]
[1745849578078,1.981,148.63,148.59,6.7272]
[1745849578274,1.981,148.63,148.51,486.0276]
[1745849579285,365.0,148.67,148.51,486.0276]
[1745849579583,6.7251,148.65,148.52,1.2094471]
[1745849579785,365.0,148.67,148.61,6.7263]
[1745849579984,1.947,148.68,148.61,6.7263]
[1745849580182,6.7254,148.64,148.61,6.7263]
[1745849581479,6.726,148.63,148.6,6.7269]
[1745849581685,1.947,148.68,148.54,2.0435]
[1745849582685,6.725,148.65,148.54,2.0435]
[1745849583181,35.584,148.68,148.54,2.0435]
[1745849583381,22.137,148.68,148.51,483.98]
[1745849583782,20.19,148.66,148.52,6.7304]
[1745849584185,6.7287,148.57,148.52,6.7304]
[1745849584586,365.0,148.65,148.52,6.7304]
[1745849584886,6.7291,148.56,148.52,6.7304]
[1745849585983,6.7287,148.57,148.53,6.7302]
[1745849586189,6.7287,148.57,148.51,483.98]
[1745849586389,1.9148,148.62,148.51,483.98]
[1745849586588,1.9148,148.62,148.53,6.73]
[1745849587091,6.7287,148.57,148.53,6.73]
[1745849587287,1.9148,148.62,148.52,6.7305]
[1745849587591,1.9148,148.62,148.51,483.98]
[1745849588287,1.9148,148.62,148.48,6.7324]
[1745849588587,33.6433,148.61,148.44,4.0372]
[1745849588791,365.0,148.6,148.49,6.7316]
[1745849589286,365.0,148.6,148.44,4.0372]
[1745849589487,365.0,148.6,148.49,6.732]
[1745849589692,6.7306,148.53,148.44,4.0372]
[1745849590187,365.0,148.6,148.49,6.7319]
[1745849590387,385.19,148.6,148.44,4.0372]
[1745849590689,365.0,148.59,148.44,4.0372]
[1745849590890,6.7306,148.53,148.49,6.7316]
[1745849591591,6.7308,148.52,148.49,6.7316]
[1745849592586,6.7305,148.53,148.49,6.7316]
[1745849592889,6.7305,148.53,148.5,6.7316]
[1745849593086,6.7305,148.53,148.44,4.0372]
[1745849593291,6.7305,148.53,148.49,6.7319]
[1745849593495,1.9127,148.56,148.49,6.7319]
[1745849594191,6.7307,148.52,148.49,6.7319]
[1745849594693,6.7315,148.51,148.44,4.0372]
[1745849594896,1.9127,148.56,148.44,4.0372]
[1745849595291,1.9127,148.56,148.44,1.9881]
[1745849595994,1.9127,148.56,148.43,486.3652]
[1745849596794,6.7321,148.49,148.43,486.3652]
[1745849597292,6.7321,148.49,148.45,6.7335]
[1745849597493,6.7317,148.5,148.43,486.3652]
[1745849597789,6.7317,148.5,148.46,6.7331]